[Event "Polish University-ch Teams 2024"]
[Site "Lublin"]
[Date "2024.02.25"]
[Round "7.11"]
[White "Parol, Pola"]
[Black "Syrkiewicz, Michal"]
[Result "1/2-1/2"]
[ECO "B41"]
[WhiteElo "2030"]
[BlackElo "2074"]
[Annotator "NA"]
[PlyCount "118"]
[EventDate "2024.02.22"]
[EventType "team-tourn"]
[EventCountry "POL"]
[SourceTitle "playchess.com"]
[Source "ChessBase"]
[SourceQuality "1"]
[TimeControl "900+5"]

1. e4 {[%emt 0:00:00]} c5 {[%emt 0:00:04]} 2. Nf3 {[%emt 0:00:02]} e6 {[%emt 0:00:01]} 3. d4 {[%emt 0:00:01]} cxd4 {[%emt 0:00:01]} 4. Nxd4 {[%emt 0:00:01]} a6 {[%emt 0:00:01]} 5. c4 {[%emt 0:00:01]} Nf6 {[%emt 0:00:02]} 6. Nc3 {[%emt 0:00:01]} Bb4 {[%emt 0:00:01]} 7. Qd3 {[%emt 0:00:35]} O-O {[%emt 0:00:02]} 8. Be2 {[%emt 0:01:44]} d6 {[%emt 0:01:53]} 9. O-O {[%emt 0:01:08]} Nbd7 {[%emt 0:00:08]} 10. f3 {[%emt 0:00:42]} Qc7 {[%emt 0:01:12]} 11. a3 {[%emt 0:01:18]} Ne5 {[%emt 0:00:55]} 12. Qd2 {[%emt 0:00:13]} Bc5 {[%emt 0:00:24]} 13. Kh1 {[%emt 0:00:02]} Rd8 {[%emt 0:00:38]} 14. f4 {[%emt 0:02:19]} Ba7 {[%emt 0:02:30]} 15. fxe5 {[%emt 0:02:56]} dxe5 {[%emt 0:00:01]} 16. Nxe6 {[%emt 0:00:10]} Bxe6 {[%emt 0:00:07]} 17. Nd5 {[%emt 0:00:14]} Bxd5 {[%emt 0:00:36]} 18. exd5 {[%emt 0:00:02]} Ne4 {[%emt 0:00:27]} 19. Qe1 {[%emt 0:00:06]} Qb6 {[%emt 0:01:01]} 20. h3 {[%emt 0:00:04]} Qg6 {[%emt 0:00:47]} 21. Rf3 {[%emt 0:00:22]} Nd6 {[%emt 0:00:39]} 22. Rg3 {[%emt 0:00:51]} Qe4 {[%emt 0:00:13]} 23. Qf1 {[%emt 0:00:14]} Qf5 {[%emt 0:00:39]} 24. Rf3 {[%emt 0:00:19]} Qg6 {[%emt 0:00:34]} 25. Bd2 {[%emt 0:00:32]} Rac8 {[%emt 0:00:33]} 26. Rc1 {[%emt 0:00:02]} Bd4 {[%emt 0:00:46]} 27. b4 {[%emt 0:00:17]} f5 {[%emt 0:00:22]} 28. Be1 {[%emt 0:00:32]} e4 {[%emt 0:00:12]} 29. Rg3 {[%emt 0:00:09]} Qh6 {[%emt 0:00:04]} 30. Rd1 {[%emt 0:00:17]} Be5 {[%emt 0:00:10]} 31. Rb3 {[%emt 0:00:33]} f4 {[%emt 0:00:16]} 32. Bd2 {[%emt 0:00:16]} Nf5 {[%emt 0:00:24]} 33. Kg1 {[%emt 0:00:29]} Bd4+ {[%emt 0:01:27]} 34. Kh2 {[%emt 0:00:07]} e3 {[%emt 0:00:01]} 35. Be1 {[%emt 0:00:06]} Be5 {[%emt 0:00:03]} 36. Kg1 {[%emt 0:00:07]} Nd4 {[%emt 0:00:09]} 37. Rbb1 {[%emt 0:00:07]} Rd6 {[%emt 0:00:02]} 38. Bg4 {[%emt 0:00:24]} Rf8 {[%emt 0:00:21]} 39. c5 {[%emt 0:00:10]} Rg6 {[%emt 0:00:20]} 40. Rxd4 {[%emt 0:00:27]} Bxd4 {[%emt 0:00:04]} 41. Qc4 {[%emt 0:00:01]} Be5 {[%emt 0:00:13]} 42. d6+ {[%emt 0:00:05]} Kh8 {[%emt 0:00:00]} 43. Bc3 {[%emt 0:00:11]} Bxc3 {[%emt 0:00:06]} 44. Qxc3 {[%emt 0:00:01]} Qh4 {[%emt 0:00:04]} 45. Rf1 {[%emt 0:00:18]} Rxg4 {[%emt 0:00:06]} 46. hxg4 {[%emt 0:00:02]} Qxg4 {[%emt 0:00:02]} 47. Rf3 {[%emt 0:00:09]} Re8 {[%emt 0:00:08]} 48. Qe1 {[%emt 0:00:05]} h5 {[%emt 0:00:04]} 49. Rh3 {[%emt 0:00:07]} e2 {[%emt 0:00:08]} 50. Rf3 {[%emt 0:00:03]} Qf5 {[%emt 0:00:07]} 51. Rf2 {[%emt 0:00:05]} Qd3 {[%emt 0:00:05]} 52. d7 {[%emt 0:00:04]} Qxd7 {[%emt 0:00:05]} 53. Rxe2 {[%emt 0:00:01]} Qd4+ {[%emt 0:00:01]} 54. Kf1 {[%emt 0:00:04]} Re3 {[%emt 0:00:06]} 55. Rxe3 {[%emt 0:00:04]} fxe3 {[%emt 0:00:01]} 56. g3 {[%emt 0:00:11]} Qd3+ {[%emt 0:00:02]} 57. Kg1 {[%emt 0:00:05]} Qxa3 {[%emt 0:00:10]} 58. Qd1 {[%emt 0:00:05]} Qc3 {[%emt 0:00:10]} 59. Qxh5+ {[%emt 0:00:03]} Kg8 {[%emt 0:00:02]} 1/2-1/2

[Event "Polish University-ch Teams 2024"]
[Site "Lublin"]
[Date "2024.02.25"]
[Round "7.12"]
[White "Moscicka, Pola"]
[Black "Kaczmarska, Joanna"]
[Result "1/2-1/2"]
[ECO "D39"]
[WhiteElo "1960"]
[BlackElo "1870"]
[Annotator "NA"]
[PlyCount "103"]
[EventDate "2024.02.22"]
[EventType "team-tourn"]
[EventCountry "POL"]
[SourceTitle "playchess.com"]
[Source "ChessBase"]
[SourceQuality "1"]
[TimeControl "900+5"]

1. d4 {[%emt 0:00:02]} d5 {[%emt 0:00:02]} 2. c4 {[%emt 0:00:02]} e6 {[%emt 0:00:01]} 3. Nc3 {[%emt 0:00:00]} Bb4 {[%emt 0:00:01]} 4. Nf3 {[%emt 0:00:08]} Nf6 {[%emt 0:00:05]} 5. Bg5 {[%emt 0:00:08]} dxc4 {[%emt 0:00:04]} 6. e4 {[%emt 0:00:55]} c5 {[%emt 0:00:11]} 7. Bxf6 {[%emt 0:03:19]} gxf6 {[%emt 0:03:52]} 8. Bxc4 {[%emt 0:01:18]} cxd4 {[%emt 0:00:25]} 9. Qxd4 {[%emt 0:00:44]} Qxd4 {[%emt 0:00:18]} 10. Nxd4 {[%emt 0:00:01]} Bxc3+ {[%emt 0:00:01]} 11. bxc3 {[%emt 0:00:01]} a6 {[%emt 0:00:01]} 12. O-O {[%emt 0:02:09]} b5 {[%emt 0:01:58]} 13. Bd3 {[%emt 0:00:04]} Nd7 {[%emt 0:01:03]} 14. Nb3 {[%emt 0:01:02]} Bb7 {[%emt 0:02:19]} 15. a4 {[%emt 0:00:05]} Ne5 {[%emt 0:02:21]} 16. Nc5 {[%emt 0:00:39]} Nxd3 {[%emt 0:02:05]} 17. Nxb7 {[%emt 0:00:02]} bxa4 {[%emt 0:00:33]} 18. Rxa4 {[%emt 0:00:15]} Rg8 {[%emt 0:00:02]} 19. g3 {[%emt 0:00:15]} Ke7 {[%emt 0:00:29]} 20. Rd4 {[%emt 0:01:22]} Nf4 {[%emt 0:00:04]} 21. Re1 {[%emt 0:00:44]} Rac8 {[%emt 0:00:26]} 22. Kh1 {[%emt 0:00:24]} e5 {[%emt 0:00:10]} 23. Rd6 {[%emt 0:00:56]} Ne6 {[%emt 0:00:14]} 24. Rxa6 {[%emt 0:00:01]} Rxc3 {[%emt 0:00:03]} 25. Nd6 {[%emt 0:00:13]} Nd4 {[%emt 0:00:13]} 26. Rb1 {[%emt 0:00:27]} Rd8 {[%emt 0:00:07]} 27. Rb7+ {[%emt 0:00:18]} Rd7 {[%emt 0:00:00]} 28. Rxd7+ {[%emt 0:00:11]} Kxd7 {[%emt 0:00:01]} 29. Nxf7 {[%emt 0:00:02]} Rc6 {[%emt 0:00:11]} 30. Ra8 {[%emt 0:00:41]} Rc8 {[%emt 0:00:07]} 31. Rxc8 {[%emt 0:00:31]} Kxc8 {[%emt 0:00:01]} 32. Nh6 {[%emt 0:00:09]} Kd7 {[%emt 0:00:05]} 33. Kg2 {[%emt 0:00:03]} Ke6 {[%emt 0:00:03]} 34. f4 {[%emt 0:00:25]} exf4 {[%emt 0:00:06]} 35. gxf4 {[%emt 0:00:01]} Nc2 {[%emt 0:00:08]} 36. Ng4 {[%emt 0:00:12]} f5 {[%emt 0:00:06]} 37. exf5+ {[%emt 0:00:07]} Kxf5 {[%emt 0:00:02]} 38. Kg3 {[%emt 0:00:03]} Nd4 {[%emt 0:00:07]} 39. Ne3+ {[%emt 0:00:05]} Ke4 {[%emt 0:00:02]} 40. Ng2 {[%emt 0:00:04]} h5 {[%emt 0:00:10]} 41. h3 {[%emt 0:00:13]} Ne2+ {[%emt 0:00:06]} 42. Kh4 {[%emt 0:00:05]} Nxf4 {[%emt 0:00:03]} 43. Nxf4 {[%emt 0:00:03]} Kxf4 {[%emt 0:00:01]} 44. Kxh5 {[%emt 0:00:01]} Kf5 {[%emt 0:00:00]} 45. h4 {[%emt 0:00:02]} Kf6 {[%emt 0:00:01]} 46. Kh6 {[%emt 0:00:01]} Kf7 {[%emt 0:00:01]} 47. Kh7 {[%emt 0:00:02]} Kf8 {[%emt 0:00:05]} 48. h5 {[%emt 0:00:01]} Kf7 {[%emt 0:00:01]} 49. h6 {[%emt 0:00:03]} Kf8 {[%emt 0:00:02]} 50. Kg6 {[%emt 0:00:02]} Kg8 {[%emt 0:00:01]} 51. h7+ {[%emt 0:00:02]} Kh8 {[%emt 0:00:01]} 52. Kh6 {[%emt 0:00:09]} 1/2-1/2

[Event "Polish University-ch Teams 2024"]
[Site "Lublin"]
[Date "2024.02.25"]
[Round "7.13"]
[White "Kosakowski, Jakub"]
[Black "Pacan-Milej, Kosma"]
[Result "1-0"]
[ECO "B12"]
[WhiteElo "2482"]
[BlackElo "2438"]
[Annotator "TA"]
[PlyCount "105"]
[EventDate "2024.02.22"]
[EventType "team-tourn"]
[EventCountry "POL"]
[SourceTitle "playchess.com"]
[Source "ChessBase"]
[SourceQuality "1"]
[TimeControl "900+5"]

{[%evp 20,105,0,0,0,0,-3,-14,0,0,0,0,0,0,7,8,14,16,21,15,42,41,32,36,52,56,110,0,238,240,236,209,212,108,257,218,243,243,216,179,180,157,158,158,158,158,159,155,154,147,174,174,310,300,322,316,312,317,298,266,410,410,410,403,396,396,373,366,2126,2122,3890,3710,3562,3444,3015,2620,2254,1685,746,578,4902,1466,29960,29962,29991,29971,29971,58]} 1. e4 {[%emt 0:00:04]} c6 {[%emt 0:00:06]} 2. d4 {[%emt 0:00:02]} d5 {[%emt 0:00:01]} 3. e5 {[%emt 0:00:02]} Bf5 {[%emt 0:00:02]} 4. c4 {[%emt 0:00:01]} e6 {[%emt 0:00:08]} 5. Nc3 {[%emt 0:00:04]} Ne7 {[%emt 0:00:04]} 6. h3 {[%emt 0:00:02] B12: Caro-Kann: Advance Variation.} Nd7 {[%emt 0:00:40]} 7. Nf3 {[%emt 0:00:05]} dxc4 {[%emt 0:00:36]} 8. Bxc4 {[%emt 0:00:03]} Nd5 {[%emt 0:00:27]} 9. O-O {[%emt 0:00:11]} Be7 {[%emt 0:00:04]} 10. Bd3 {[%emt 0:00:21]} Bxd3 {[%emt 0:00:42]} 11. Qxd3 {[%emt 0:00:02]} O-O {[%emt 0:00:04]} 12. Ne4 {[%emt 0:00:33]} c5 {[%emt 0:00:18]} 13. dxc5 $146 {[%emt 0:01:16]} ({Predecessor:} 13. Bg5 cxd4 14. Bxe7 Nxe7 15. Neg5 g6 16. Qxd4 Nf5 17. Qf4 Qb6 18. Rfd1 Nc5 19. b4 Na4 20. g4 Ne7 21. Ne4 Rfd8 22. Qh6 {1-0 Liyanage,R (2361)-Bitelmajer,M (2475) Titled Tuesday intern op 27th Jun Late blitz 2023 (2)}) 13... Nxc5 {[%emt 0:00:11]} 14. Nxc5 {[%emt 0:00:03]} Bxc5 {[%emt 0:00:03]} 15. Ng5 {[%emt 0:00:02]} g6 {[%emt 0:00:10]} 16. Ne4 {[%emt 0:00:03]} Be7 {[%emt 0:00:07]} 17. Bh6 {[%emt 0:01:30]} Re8 {[%emt 0:00:03]} 18. Rac1 {[%emt 0:00:48]} Qb6 {[%emt 0:00:41]} 19. b3 {[%emt 0:00:22]} Rad8 {[%emt 0:00:34]} 20. Rfd1 {[%emt 0:02:16]} Rc8 {[%emt 0:08:21]} 21. Rc4 {[%emt 0:00:59]} Qa6 {[%emt 0:01:00]} 22. Qf3 {[%emt 0:00:20]} Rcd8 {[%emt 0:02:02]} ({But not} 22... Rxc4 $2 23. bxc4 Rc8 (23... Qxc4 $2 24. Rxd5 exd5 25. Nf6+ Kh8 26. Nxe8 $18) 24. cxd5 $18) ({Black should try} 22... Rc6 $14) 23. Ng5 {[%emt 0:02:18]} ({Better is} 23. Bg5 $16) 23... f5 $2 {[%emt 0:00:14]} (23... Bxg5 $11 {and Black stays safe.} 24. Bxg5 b5) 24. exf6 $18 {[%emt 0:00:10]} Nxf6 {[%emt 0:00:04]} 25. Re1 {[%emt 0:00:17]} e5 {[%emt 0:00:08]} 26. Rxe5 {[%emt 0:00:29]} (26. Rc7 $18 Rd3 27. Qxb7 Qxb7 28. Rxb7) 26... Bf8 {[%emt 0:00:15]} (26... Qd6 $16 27. Re6 Qd1+ 28. Qxd1 Rxd1+ 29. Kh2 Rd6) 27. Rxe8 {[%emt 0:00:40]} Rxe8 {[%emt 0:00:02]} 28. Bxf8 {[%emt 0:00:05]} Rxf8 {[%emt 0:00:07]} 29. Rf4 {[%emt 0:00:55]} Qd6 {[%emt 0:00:04]} 30. g3 {[%emt 0:00:21]} h6 {[%emt 0:00:08]} 31. Ne4 {[%emt 0:00:17]} Nxe4 {[%emt 0:00:04]} 32. Rxf8+ {[%emt 0:00:02]} Qxf8 {[%emt 0:00:02]} 33. Qxe4 {[%emt 0:00:03]} Qg7 {[%emt 0:00:02]} 34. Kg2 {[%emt 0:00:09]} Kh7 {[%emt 0:00:01]} 35. g4 {[%emt 0:00:05]} Qc7 {[%emt 0:00:14]} (35... Qd7 $142 36. h4 Kg7 37. Qe5+ Kf7) 36. h4 $18 {[%emt 0:00:07]} Kg7 {[%emt 0:00:02]} 37. Qd4+ {[%emt 0:00:03]} Kh7 {[%emt 0:00:04]} 38. Qxa7 {[%emt 0:00:11]} Qc6+ {[%emt 0:00:05]} 39. f3 {[%emt 0:00:07]} h5 {[%emt 0:00:09]} (39... Qc2+ {was called for.} 40. Qf2 Qd3) 40. gxh5 $18 {[%emt 0:00:38]} gxh5 {[%emt 0:00:01]} 41. Qe3 {[%emt 0:00:09]} Qc2+ {[%emt 0:00:03]} 42. Kg3 {[%emt 0:00:09]} Qg6+ {[%emt 0:00:10]} 43. Qg5 {[%emt 0:00:04]} Qd6+ $2 {[%emt 0:00:02]} (43... Qf7 44. Kf2 Kh8) 44. Kg2 $18 {[%emt 0:00:02]} Qd1 {[%emt 0:00:11]} 45. Qxh5+ {[%emt 0:00:03]} Kg7 {[%emt 0:00:01]} 46. Qe5+ {[%emt 0:00:06]} Kh7 {[%emt 0:00:03]} 47. Qe4+ {[%emt 0:00:04]} Kh6 {[%emt 0:00:02]} 48. Qe3+ {[%emt 0:00:20]} Kg7 {[%emt 0:00:05]} 49. Kg3 {[%emt 0:00:13]} Qc2 {[%emt 0:00:06]} 50. Qe7+ {[%emt 0:00:05]} Kh8 {[%emt 0:00:04]} 51. h5 {[%emt 0:00:30]} Qxa2 {[%emt 0:00:09]} 52. h6 {[%emt 0:00:02]} Qb2 {[%emt 0:00:12]} 53. Qg7+ $2 {[%emt 0:00:02]} (53. f4 {mates} Qxb3+ 54. Kh4 Qg8 55. Kh5 (55. Qxb7 Qd8+ 56. Kg3 Qd3+ 57. Kh4 Qd8+ 58. Kg4 Qd1+ 59. Qf3 Qd7+ 60. Kg3 Kh7 $11) 55... b5 56. Qe5+ Kh7 57. Qe4+ (57. Qxb5 Qg6+ 58. Kh4 Qxh6+ 59. Kg4 Qe6+ 60. Kf3 Qh3+ 61. Ke4 Qg2+ 62. Ke5 Qg7+ 63. Ke4 Qg2+ 64. Ke3 Qg1+ 65. Kd2 Qh2+ 66. Kc3 Qxf4 $11) 57... Kh8 58. Qd4+ Kh7 59. Qd7+ Kh8 60. f5 (60. Qxb5 Qf7+ 61. Kg5 Qe7+ 62. Kh5 Qf7+ 63. Kg5 Qe7+ 64. Kf5 Qh7+ 65. Ke5 Qe7+ 66. Kf5 Qf8+ 67. Kg6 Qg8+ 68. Kh5 Qf7+ $11)) 1-0

[Event "Polish University-ch Teams 2024"]
[Site "Lublin"]
[Date "2024.02.25"]
[Round "7.14"]
[White "Redzisz, Michal"]
[Black "Niedbala, Bartlomiej"]
[Result "0-1"]
[ECO "B92"]
[WhiteElo "2229"]
[BlackElo "2382"]
[Annotator "TA"]
[PlyCount "70"]
[EventDate "2024.02.22"]
[EventType "team-tourn"]
[EventCountry "POL"]
[SourceTitle "playchess.com"]
[Source "ChessBase"]
[SourceQuality "1"]
[TimeControl "900+5"]

{[%evp 24,70,0,14,20,14,33,0,31,0,10,18,43,25,39,-29,-27,-27,-31,-70,-59,-75,-50,-299,-242,-311,-339,-413,-389,-541,-575,-977,-983,-1276,-907,-1429,-1336,-1438,-1408,-6107,-6207,-6303,-6500,-3032,-1862,-1866,-1698,-29981,-29982]} 1. e4 {[%emt 0:00:02]} c5 {[%emt 0:00:22]} 2. Nf3 {[%emt 0:00:05]} d6 {[%emt 0:00:01]} 3. d4 {[%emt 0:00:05]} cxd4 {[%emt 0:00:01]} 4. Nxd4 {[%emt 0:00:01]} Nf6 {[%emt 0:00:01]} 5. Nc3 {[%emt 0:00:01]} a6 {[%emt 0:00:00]} 6. Be2 {[%emt 0:00:01]} e5 {[%emt 0:00:01]} 7. Nb3 {[%emt 0:00:00]} Be7 {[%emt 0:00:00]} 8. Be3 {[%emt 0:00:01]} Be6 {[%emt 0:00:01]} 9. Qd3 {[%emt 0:00:03]} Nbd7 {[%emt 0:00:37]} 10. Nd5 {[%emt 0:00:01]} Bxd5 {[%emt 0:00:01]} 11. exd5 {[%emt 0:00:01]} O-O {[%emt 0:00:02]} 12. O-O {[%emt 0:00:00]} Rc8 {[%emt 0:00:44]} 13. c4 {[%emt 0:00:01]} a5 {[%emt 0:14:19]} 14. Rac1 {[%emt 0:02:51]} Re8 {[%emt 0:00:00]} 15. Nd2 {[%emt 0:01:28]} g6 {[%emt 0:00:00] Die Stellung ist ausgeglichen.} 16. a3 {[%emt 0:00:55]} a4 {[%emt 0:00:00]} 17. Bd1 {[%emt 0:01:23]} Qa5 {[%emt 0:00:00]} 18. Nb1 {[%emt 0:02:56]} Qa6 {[%emt 0:00:00]} 19. Qd2 {[%emt 0:02:46]} (19. Be2 $14) 19... Ne4 $11 {[%emt 0:00:00]} (19... Rxc4 $6 20. Be2 b5 21. Bxc4 bxc4 22. h3 $16) 20. Qb4 {[%emt 0:00:03]} Nec5 {[%emt 0:00:00]} 21. Be2 {[%emt 0:02:30] Lässt Nd3 nicht zu} Nb3 {[%emt 0:00:00]} 22. Rc2 {[%emt 0:00:17]} Ndc5 {[%emt 0:00:00] Ein dynamisches Springerpaar.} 23. Nc3 $2 {[%emt 0:01:19] [#] Ein Fehler, der zur Niederlage führt.} (23. Rd1 $1 $15) 23... Nd4 $1 $19 {[%emt 0:00:50]} 24. Bxd4 {[%emt 0:00:08]} exd4 {[%emt 0:00:00]} 25. Bg4 {[%emt 0:00:06]} f5 {[%emt 0:00:00]} ({Weniger gut wäre} 25... dxc3 26. Bxc8 Bf6 (26... Rxc8 $2 27. Qxc3 Bf8 28. Re1 $19) 27. Bxb7 Nxb7 28. bxc3 $19) 26. Bxf5 {[%emt 0:00:02]} gxf5 {[%emt 0:00:00]} 27. Nd1 {[%emt 0:00:08]} Bg5 {[%emt 0:00:00] Droht ...Nd3 und aus.} 28. h4 {[%emt 0:00:02]} d3 {[%emt 0:00:00]} 29. hxg5 {[%emt 0:00:07]} dxc2 {[%emt 0:00:00]} 30. Ne3 {[%emt 0:00:02] [#]} Rxe3 $1 {[%emt 0:00:00]} 31. fxe3 {[%emt 0:00:00]} (31. Qd2 Re4) 31... Nd3 {[%emt 0:00:00][%csl LRb4,LRc4]} 32. Qc3 {[%emt 0:00:12]} Qxc4 {[%emt 0:00:00]} 33. Qf6 {[%emt 0:00:05]} Ne5 {[%emt 0:00:00][%cal Oc4f1] ( -> ...Qxf1+!)} ({Minderwertig wäre} 33... c1=R 34. Qe6+ Kh8 (34... Kf8 35. Qxd6+ Kg8 36. Qe6+ Kh8 37. Qf6+ Kg8 38. Qe6+ Kh8 39. Qf6+ Kg8 40. Qe6+ $11) 35. Qf6+ Kg8 36. Qe6+ Kf8 37. Qxf5+ Ke8 38. Qe6+ Kd8 39. Qxd6+ Ke8 40. Qe6+ Kd8 41. Qd6+ Ke8 42. Qe6+ Kd8 43. Qd6+ $11) 34. Qe6+ {[%emt 0:00:03]} Nf7 {[%emt 0:00:00]} 35. Qxf5 {[%emt 0:00:09] [#]} Qxf1+ $3 {[%emt 0:00:00][%mdl 512] Gewichteter Fehlerwert: Weiß=1.25/Schwarz=0.66.  Verlustzug:     	Weiß=1     	---        Fehler:       	Weiß=1     	---        Ungenau:       	Weiß=4     	Schwarz=1     OK:         	Weiß=1     	Schwarz=4     Bester:       	---       	Schwarz=2     Stark:        	---       	Schwarz=1} 0-1

[Event "Polish University-ch Teams 2024"]
[Site "Lublin"]
[Date "2024.02.25"]
[Round "7.15"]
[White "Hasterok, Mateusz"]
[Black "Galuszka, Tomasz"]
[Result "1/2-1/2"]
[ECO "D02"]
[WhiteElo "2150"]
[BlackElo "2181"]
[Annotator "RC"]
[PlyCount "69"]
[EventDate "2024.02.22"]
[EventType "team-tourn"]
[EventCountry "POL"]
[SourceTitle "playchess.com"]
[Source "ChessBase"]
[SourceQuality "1"]
[TimeControl "900+5"]

1. d4 {[%emt 0:00:01]} d5 {[%emt 0:00:01]} 2. Nf3 {[%emt 0:00:02]} Nf6 {[%emt 0:00:02]} 3. c3 {[%emt 0:00:01]} Bf5 {[%emt 0:00:12]} 4. Qb3 {[%emt 0:00:06]} Qc8 {[%emt 0:00:14]} 5. Bg5 {[%emt 0:00:01]} Nbd7 {[%emt 0:00:57]} 6. Nbd2 {[%emt 0:00:02]} e6 {[%emt 0:00:03]} 7. e3 {[%emt 0:00:02]} Be7 {[%emt 0:00:08]} 8. Be2 {[%emt 0:00:05]} h6 {[%emt 0:00:04]} 9. Bh4 {[%emt 0:00:01]} O-O {[%emt 0:00:03]} 10. O-O {[%emt 0:00:02]} Re8 {[%emt 0:00:07]} 11. Rac1 {[%emt 0:00:15]} c6 {[%emt 0:00:36]} 12. c4 {[%emt 0:00:07]} Ne4 {[%emt 0:01:19]} 13. Bxe7 {[%emt 0:00:21]} Rxe7 {[%emt 0:00:03]} 14. Nxe4 {[%emt 0:00:02]} Bxe4 {[%emt 0:00:08]} 15. Nd2 {[%emt 0:00:07]} Bg6 {[%emt 0:00:16]} 16. cxd5 {[%emt 0:00:08]} exd5 {[%emt 0:00:03]} 17. Bf3 {[%emt 0:00:01]} Nf6 {[%emt 0:00:13]} 18. Qa3 {[%emt 0:00:53]} Qd7 {[%emt 0:00:28]} 19. b4 {[%emt 0:00:08]} a6 {[%emt 0:00:36]} 20. Qb3 {[%emt 0:00:35]} Ne4 {[%emt 0:00:29]} 21. Bxe4 {[%emt 0:00:18]} Bxe4 {[%emt 0:00:02]} 22. Nxe4 {[%emt 0:00:05]} Rxe4 {[%emt 0:00:01]} 23. a4 {[%emt 0:00:19]} Re6 {[%emt 0:00:58]} 24. Rc5 {[%emt 0:00:42]} Rg6 {[%emt 0:00:03]} 25. Rfc1 {[%emt 0:00:45]} h5 {[%emt 0:01:27]} 26. Qd1 {[%emt 0:00:47]} Qf5 {[%emt 0:00:34]} 27. Qe2 {[%emt 0:03:21]} Re8 {[%emt 0:01:02]} 28. Kh1 {[%emt 0:00:21]} Qe4 {[%emt 0:00:36]} 29. Qf3 {[%emt 0:00:10]} Qh4 {[%emt 0:01:05]} 30. g3 {[%emt 0:01:15]} Qh3 {[%emt 0:00:14]} 31. Qg2 {[%emt 0:00:10]} Qf5 {[%emt 0:00:10]} 32. b5 {[%emt 0:01:07]} axb5 {[%emt 0:00:09]} 33. axb5 {[%emt 0:00:01]} Ree6 {[%emt 0:00:02]} 34. bxc6 {[%emt 0:00:19]} bxc6 {[%emt 0:00:01]} 35. h3 {[%emt 0:00:29]} 1/2-1/2

[Event "Polish University-ch Teams 2024"]
[Site "Lublin"]
[Date "2024.02.25"]
[Round "7.16"]
[White "Skurniak, Szymon"]
[Black "Brozyna, Mateusz"]
[Result "1/2-1/2"]
[WhiteElo "2096"]
[BlackElo "2259"]
[Annotator "TA"]
[PlyCount "18"]
[EventDate "2024.02.22"]
[EventType "team-tourn"]
[EventCountry "POL"]
[SourceTitle "playchess.com"]
[Source "ChessBase"]
[SourceQuality "1"]
[TimeControl "900+5"]

{[%evp 11,18,0,0,-34,18,-45,-21,-22,43]} 1. e4 {[%emt 0:00:05]} e5 {[%emt 0:00:01]} 2. Nf3 {[%emt 0:00:02]} Nc6 {[%emt 0:00:02]} 3. d4 {[%emt 0:00:02]} exd4 {[%emt 0:00:05]} 4. Nxd4 {[%emt 0:00:02]} Bc5 {[%emt 0:00:02]} 5. Nb3 {[%emt 0:00:06]} Bb6 {[%emt 0:00:02]} 6. Nc3 {[%emt 0:00:02]} Nf6 {[%emt 0:00:03]} 7. Qe2 {[%emt 0:00:19]} O-O {[%emt 0:00:04]} (7... a5 $15) 8. Bg5 {[%emt 0:01:08]} (8. Be3 $1 $11) 8... h6 $15 {[%emt 0:00:13]} 9. Bh4 {[%emt 0:00:02]} Nd4 {[%emt 0:01:28] Hier war wenig los.   Gewichteter Fehlerwert: Weiß=0.32/Schwarz=0.31.  Fehler:       	Weiß=1     	Schwarz=2     OK:         	Weiß=1     	---        Bester:       	---       	Schwarz=1} (9... a5 $11) 1/2-1/2

[Event "Polish University-ch Teams 2024"]
[Site "Lublin"]
[Date "2024.02.25"]
[Round "7.17"]
[White "Adamczyk, Zuzanna"]
[Black "Dziendziel, Mateusz"]
[Result "0-1"]
[ECO "B67"]
[WhiteElo "1970"]
[BlackElo "1975"]
[Annotator "NA"]
[PlyCount "74"]
[EventDate "2024.02.22"]
[EventType "team-tourn"]
[EventCountry "POL"]
[SourceTitle "playchess.com"]
[Source "ChessBase"]
[SourceQuality "1"]
[TimeControl "900+5"]

1. e4 {[%emt 0:00:05]} c5 {[%emt 0:00:01]} 2. Nf3 {[%emt 0:00:03]} d6 {[%emt 0:00:01]} 3. d4 {[%emt 0:00:02]} cxd4 {[%emt 0:15:18]} 4. Nxd4 {[%emt 0:00:02]} Nf6 {[%emt 0:00:00]} 5. Nc3 {[%emt 0:00:02]} Nc6 {[%emt 0:00:00]} 6. Bg5 {[%emt 0:01:12]} e6 {[%emt 0:00:00]} 7. Qd2 {[%emt 0:00:16]} a6 {[%emt 0:00:00]} 8. O-O-O {[%emt 0:00:21]} Bd7 {[%emt 0:00:00]} 9. Nxc6 {[%emt 0:01:16]} Bxc6 {[%emt 0:00:00]} 10. f3 {[%emt 0:00:07]} b5 {[%emt 0:00:00]} 11. Kb1 {[%emt 0:02:32]} Be7 {[%emt 0:00:00]} 12. h4 {[%emt 0:01:56]} h5 {[%emt 0:00:00]} 13. Ne2 {[%emt 0:01:09]} Qc7 {[%emt 0:00:00]} 14. Nd4 {[%emt 0:02:53]} Bb7 {[%emt 0:00:00]} 15. Nb3 {[%emt 0:00:18]} Rc8 {[%emt 0:00:00]} 16. Rc1 {[%emt 0:00:55]} d5 {[%emt 0:00:00]} 17. exd5 {[%emt 0:01:21]} Bxd5 {[%emt 0:00:00]} 18. Bd3 {[%emt 0:00:32]} O-O {[%emt 0:00:00]} 19. Bf4 {[%emt 0:00:23]} Qb7 {[%emt 0:00:00]} 20. Na5 {[%emt 0:00:27]} Qb6 {[%emt 0:00:00]} 21. Be3 {[%emt 0:00:08]} Qc7 {[%emt 0:00:00]} 22. c4 {[%emt 0:00:09]} bxc4 {[%emt 0:00:06]} 23. Bxc4 {[%emt 0:00:04]} Bxc4 {[%emt 0:00:13]} 24. Nxc4 {[%emt 0:00:14]} Rfd8 {[%emt 0:00:08]} 25. Qf2 {[%emt 0:00:07]} Qb7 {[%emt 0:00:19]} 26. Bb6 {[%emt 0:00:07]} Re8 {[%emt 0:00:15]} 27. Na5 {[%emt 0:00:03]} Qd5 {[%emt 0:00:13]} 28. Nb3 {[%emt 0:00:08]} Qf5+ {[%emt 0:00:09]} 29. Ka1 {[%emt 0:00:03]} Nd5 {[%emt 0:00:02]} 30. Bc5 {[%emt 0:00:08]} Bf6 {[%emt 0:00:05]} 31. Bd4 {[%emt 0:00:05]} Nb4 {[%emt 0:00:28]} 32. Bc3 {[%emt 0:00:26]} Nd3 {[%emt 0:00:07]} 33. Qd2 {[%emt 0:00:04]} Nxc1 {[%emt 0:00:04]} 34. Rxc1 {[%emt 0:00:02]} Bxc3 {[%emt 0:00:05]} 35. bxc3 {[%emt 0:00:03]} Red8 {[%emt 0:00:01]} 36. Nd4 {[%emt 0:00:04]} Qf6 {[%emt 0:00:07]} 37. Qf2 {[%emt 0:00:11]} Rxd4 {[%emt 0:00:11]} 0-1